bitfinex-derivatives/quotes_ETHF0:USTF0_20250614
["timestamp","ask_amount","ask_price","bid_price","bid_amount"]
[1749943769533,3.8236085,2531.0,2530.9,24.75384897]
[1749943770037,3.8236085,2531.0,2530.9,23.96392897]
[1749943770339,3.8236085,2531.0,2530.9,24.75384897]
[1749943770836,3.8236085,2531.0,2530.9,0.79584897]
[1749943771038,3.8236085,2531.0,2530.9,24.75184897]
[1749943772641,2.5410085,2531.0,2530.9,24.75184897]
[1749943774138,0.6709,2531.0,2530.9,24.75184897]
[1749943774335,1.75188414,2531.0,2530.9,24.75184897]
[1749943774540,0.6709,2531.0,2530.9,0.79584897]
[1749943774733,1.46079,2531.0,2530.9,24.74884897]
[1749943774935,0.6709,2531.0,2530.9,24.74884897]
[1749943775335,2.5417768,2531.0,2530.9,24.74884897]
[1749943775642,1.7518868,2531.0,2530.9,24.74884897]
[1749943775843,2.5417768,2531.0,2530.9,24.74884897]
[1749943776042,1.7518868,2531.0,2530.9,24.74884897]
[1749943776342,1.7518868,2531.0,2530.9,24.81694165]
[1749943776545,0.6709,2531.0,2530.9,24.81694165]
[1749943777045,1.46079,2531.0,2530.9,24.81694165]
[1749943778748,0.6709,2531.0,2530.9,0.07402165]
[1749943779046,5.7497171,2531.0,2530.9,0.07402165]
[1749943779242,7.1116171,2531.0,2530.9,0.00592897]
[1749943780248,7.1116171,2531.0,2530.9,0.07402165]
[1749943781042,3.9038171,2531.0,2530.9,0.07402165]
[1749943781239,2.5419171,2531.0,2530.9,0.86394165]
[1749943782744,1.7520271,2531.0,2530.9,4.07174165]
[1749943783338,1.7520271,2531.0,2530.9,4.00364897]
[1749943783546,1.0811271,2531.0,2530.9,27.96664897]
[1749943784244,1.43555,2531.2,2531.1,0.78986]
[1749943784445,0.78986,2531.1,2531.0,0.6454]
[1749943784653,0.78989,2531.0,2530.9,0.07402165]
[1749943784836,1.87178605,2531.0,2530.9,0.07402165]
[1749943785043,5.07958605,2531.0,2530.9,0.07402165]
[1749943785546,5.07958605,2531.0,2530.9,0.00592897]
[1749943786952,6.36878605,2531.0,2530.9,0.00592897]
[1749943788451,6.36878605,2531.0,2530.9,0.07402165]
[1749943789451,6.36878605,2531.0,2530.9,0.00592897]
[1749943792364,6.36878605,2531.0,2530.9,0.07402165]
[1749943792562,1.87178605,2531.0,2530.9,0.07402165]
[1749943792764,1.87178605,2531.0,2530.9,0.86394165]
[1749943794061,1.87178605,2531.0,2530.9,0.07402165]
[1749943794661,1.87178605,2531.0,2530.9,0.86394165]
[1749943795161,1.87178605,2531.0,2530.9,2.12594165]
[1749943795757,1.08189605,2531.0,2530.9,2.12594165]
[1749943795960,1.08200072,2531.1,2530.9,4.54382165]
[1749943796162,0.78981,2531.3,2530.9,4.07174165]
[1749943796465,1.87174549,2531.2,2531.1,0.78983]
[1749943796867,1.08191549,2531.2,2531.1,0.78983]
[1749943797778,1.08191549,2531.2,2530.9,27.26382165]
[1749943797965,0.7898,2531.3,2531.1,0.78985]
[1749943798166,1.87162937,2531.2,2531.1,0.78985]
[1749943798770,0.78983,2531.2,2531.1,0.78985]
[1749943799170,1.87158172,2531.2,2531.1,0.78985]
[1749943800473,1.08175172,2531.2,2531.1,0.78985]
[1749943801072,1.08175172,2531.2,2531.1,1.44875]
[1749943801874,1.87158172,2531.2,2531.1,1.44875]
[1749943802069,1.08175172,2531.2,2531.1,1.44875]
[1749943802274,0.00592897,2531.4,2531.3,0.7898]
[1749943802570,0.00592897,2531.4,2531.3,3.9976]
[1749943803870,0.00592897,2531.4,2531.3,3.2078]
[1749943804075,0.79569897,2531.4,2531.3,3.2078]
[1749943804373,0.00592897,2531.4,2531.3,3.9976]
[1749943808577,0.79569897,2531.4,2531.3,34.1406]
[1749943808778,0.00592897,2531.4,2531.3,34.1406]
[1749943811081,0.79569897,2531.4,2531.3,34.1406]
[1749943811484,0.00592897,2531.4,2531.3,34.1406]
[1749943813682,0.00592897,2531.4,2531.3,34.1386]
[1749943814482,0.79569897,2531.4,2531.3,34.1386]
[1749943815585,0.00592897,2531.4,2531.3,34.1386]
[1749943816080,0.79569897,2531.4,2531.3,34.1386]
[1749943816983,0.79569897,2531.4,2531.3,30.9308]
[1749943817182,8.97e-06,2531.4,2531.3,35.9308]
[1749943817374,0.6592,2532.4,2531.5,1.97422]
[1749943817677,0.6592,2532.4,2532.3,0.78943]
[1749943817981,0.6592,2532.4,2532.2,24.074]
[1749943817982,1.44862,2532.4,2532.2,24.074]
[1749943818283,0.6592,2532.4,2532.2,24.074]
[1749943818487,0.6592,2532.4,2532.0,3.2078]
[1749943818680,0.78946,2532.2,2532.1,24.072]
[1749943820781,0.78956,2531.9,2531.8,0.6618]
[1749943820982,0.78956,2531.9,2531.8,30.8838]
[1749943821988,1.44945,2532.0,2531.9,0.78956]
[1749943823077,1.44141,2532.1,2532.0,0.78953]
[1749943823579,1.44142,2532.1,2532.0,0.78953]
[1749943823778,0.6519,2532.1,2532.0,0.78953]
[1749943823981,0.78945,2532.3,2531.9,3.2078]
[1749943824177,0.78945,2532.3,2532.2,0.78946]
[1749943824380,0.78945,2532.3,2532.2,24.85246]
[1749943824780,0.78945,2532.3,2532.2,24.063]
[1749943825084,0.78945,2532.3,2532.2,24.85246]
[1749943825282,1.42551,2532.4,2532.2,24.85244]
[1749943825480,0.78943,2532.3,2532.2,24.85244]
[1749943825782,1.42552,2532.4,2532.2,24.85244]
[1749943825978,0.78942,2532.4,2532.3,0.78943]
[1749943826178,0.78942,2532.4,2532.2,29.34344]
[1749943826378,0.78943,2532.3,2532.2,29.34344]
[1749943827084,0.78943,2532.3,2532.2,27.2708]
[1749943827582,0.78943,2532.3,2532.2,3.2078]
[1749943829184,0.78943,2532.3,2532.2,27.2738]
[1749943832180,0.78943,2532.3,2532.2,3.2078]
[1749943832375,1.86721706,2532.3,2532.2,24.065]
[1749943834988,1.86721706,2532.3,2532.2,24.13309268]
[1749943835988,1.86721706,2532.3,2532.2,24.065]
[1749943836185,0.7895,2532.1,2532.0,30.271]
[1749943836886,0.7895,2532.1,2532.0,31.06053]
[1749943837291,0.7895,2532.1,2532.0,30.271]
[1749943838391,0.7895,2532.1,2532.0,30.276]
[1749943844292,0.78953,2532.0,2531.9,0.6422]
[1749943844486,0.78953,2532.0,2531.7,0.78961]
[1749943844487,0.78959,2531.8,2531.7,6.201]
[1749943844698,0.78959,2531.8,2531.7,30.9377]
[1749943846096,0.78959,2531.8,2531.7,31.00579268]
[1749943847098,0.78959,2531.8,2531.7,30.9377]
[1749943848289,1.87035199,2531.8,2531.7,30.9377]
[1749943848690,0.78959,2531.8,2531.7,30.9377]
[1749943848891,1.87027238,2531.8,2531.7,30.9377]
[1749943850094,1.87027238,2531.8,2531.7,6.8777]
[1749943850299,1.87027238,2531.8,2531.7,30.9287]
[1749943850495,1.87027238,2531.8,2531.7,6.8777]
[1749943850690,1.87027238,2531.8,2531.7,30.9287]
[1749943858611,1.87027238,2531.8,2531.7,30.9107]
[1749943859307,1.87017843,2531.8,2531.7,30.9107]
[1749943860207,1.87017843,2531.8,2531.7,0.6767]
[1749943860398,1.87017843,2531.8,2531.7,24.7017]
[1749943860605,1.87017843,2531.8,2531.7,0.6767]
[1749943860908,0.78968,2531.5,2531.4,6.187]
[1749943861098,0.78968,2531.5,2531.4,30.8882]
[1749943862215,0.78968,2531.5,2531.4,6.8652]
[1749943862406,1.8703887,2531.5,2531.4,24.7032]
[1749943866411,1.8703887,2531.5,2531.4,24.77129268]
[1749943867416,1.8703887,2531.5,2531.4,0.6782]
[1749943867613,0.78971,2531.4,2531.3,24.016]
[1749943867816,1.44231,2531.4,2531.3,24.016]
[1749943868516,0.78975,2531.3,2531.2,3.8491]
[1749943868717,0.78975,2531.3,2531.2,27.8621]
[1749943871118,0.78975,2531.3,2531.2,27.8541]
[1749943872321,0.78975,2531.3,2531.2,24.6433]
[1749943873823,1.87020644,2531.3,2531.2,24.6433]
[1749943874020,0.78981,2531.1,2531.0,0.6581]
[1749943874228,0.78981,2531.1,2531.0,25.2951]
[1749943875026,0.78981,2531.1,2531.0,27.37674]
[1749943875726,0.78981,2531.1,2531.0,26.5869]
[1749943875925,0.78981,2531.1,2531.0,27.37674]
[1749943879030,0.78981,2531.1,2531.0,24.637]
[1749943879740,0.78981,2531.1,2531.0,24.70509268]
[1749943880030,0.78981,2531.1,2531.0,0.70509268]
[1749943880328,0.78981,2531.1,2531.0,24.70309268]
[1749943881730,0.78981,2531.1,2531.0,25.9727]
[1749943884325,0.78981,2531.1,2531.0,1.9747]
[1749943884530,0.78981,2531.1,2531.0,24.623]
[1749943885328,0.78981,2531.1,2531.0,24.622]
[1749943887533,1.87122165,2531.1,2531.0,24.622]
[1749943888828,1.87122165,2531.1,2531.0,24.69009268]
[1749943889330,1.87122165,2531.1,2531.0,0.70509268]
[1749943889544,9.28921165,2531.1,2530.3,3.2078]
[1749943889723,0.79012,2530.1,2530.0,8.1464]
[1749943890029,0.79012,2530.1,2530.0,32.1424]
[1749943890230,1.87228128,2530.1,2530.0,32.1424]
[1749943890735,0.79012,2530.1,2530.0,32.1424]
[1749943891527,0.79018,2529.9,2529.8,6.15992897]
[1749943891726,0.79018,2529.9,2529.8,30.15392897]
[1749943892126,0.79018,2529.9,2529.8,30.15692897]
[1749943893434,0.79018,2529.9,2529.8,6.15992897]
[1749943893629,0.79018,2529.9,2529.8,30.15592897]
[1749943893832,0.79018,2529.9,2529.8,0.00592897]
[1749943894135,0.79018,2529.9,2529.1,6.155]
[1749943894136,0.7904,2529.2,2529.1,6.155]
[1749943894329,0.7904,2529.2,2529.1,30.8326]
[1749943894525,0.7904,2529.2,2529.1,32.1022]
[1749943894738,0.7904,2529.2,2529.1,32.7804]
[1749943895330,0.7904,2529.2,2529.1,32.7834]
[1749943897139,0.7904,2529.2,2529.1,8.7574]
[1749943897342,0.7904,2529.2,2529.1,32.7804]
[1749943897841,0.7904,2529.2,2529.1,33.57083]
[1749943898243,0.7904,2529.2,2529.1,32.7804]
[1749943898743,0.7904,2529.2,2529.1,33.57082]
[1749943900541,0.79039,2529.3,2529.2,0.79039]
[1749943900741,0.79037,2529.3,2529.2,24.021]
[1749943903338,2.62687,2529.4,2529.0,3.99825]
[1749943903546,0.7904,2529.2,2529.1,30.176]
[1749943904245,0.7904,2529.2,2529.1,30.96643]
[1749943904842,0.7904,2529.2,2529.1,32.25253]
[1749943905636,0.7904,2529.2,2529.1,2.07653]
[1749943905839,0.7904,2529.2,2529.1,26.08553]
[1749943907447,0.79039,2529.3,2529.2,0.79038]
[1749943907945,0.79039,2529.3,2529.2,2.85448]
[1749943908143,0.79039,2529.3,2529.2,2.0641]
[1749943909050,0.79039,2529.3,2529.2,26.0671]
[1749943909551,0.79039,2529.3,2529.2,26.8575]
[1749943909751,0.79039,2529.3,2529.2,26.0671]
[1749943910058,0.79039,2529.3,2529.2,26.8575]
[1749943910250,0.79039,2529.3,2529.2,26.0671]
[1749943910450,0.79039,2529.3,2529.2,26.8575]
[1749943910648,0.79039,2529.3,2529.2,26.0671]
[1749943911655,0.79039,2529.3,2529.2,26.8575]
[1749943912259,0.79039,2529.3,2529.2,26.0671]
[1749943912661,0.79039,2529.3,2529.2,26.8575]
[1749943912861,1.97533,2530.1,2529.7,0.79021]
[1749943913060,1.2998,2530.2,2529.8,23.995]
[1749943913258,1.2998,2530.2,2530.0,3.2078]
[1749943913259,0.79014,2530.1,2530.0,3.2078]
[1749943913457,0.79015,2530.0,2529.9,0.79017]
[1749943913762,0.79015,2530.0,2529.9,24.011]
[1749943916664,0.79018,2529.9,2529.8,1.9309]
[1749943916863,0.79018,2529.9,2529.8,25.9389]
[1749943918060,0.79018,2529.9,2529.8,24.6852]
[1749943918266,0.79018,2529.9,2529.8,25.47541]
[1749943919267,0.79018,2529.9,2529.8,25.4754]
[1749943920260,0.79014,2530.1,2530.0,0.79013]
[1749943920467,0.79014,2530.1,2529.8,24.6852]
[1749943920468,1.2998,2530.2,2529.8,25.9942]
[1749943920665,0.79016,2530.0,2529.9,0.79018]
[1749943921056,0.00592897,2530.3,2530.2,0.79009]
[1749943921261,0.00592897,2530.3,2530.2,27.99389]
[1749943921663,0.79,2530.5,2530.4,0.79]
[1749943922067,0.79002,2530.5,2530.4,0.79001]
[1749943922567,0.78999,2530.6,2530.5,0.78998]
[1749943922866,0.78999,2530.6,2530.5,24.012]
[1749943924067,0.78999,2530.6,2530.5,24.802]
[1749943924472,0.78999,2530.6,2530.5,24.012]
[1749943925072,0.78999,2530.6,2530.5,24.802]
[1749943925575,0.78996,2530.7,2530.6,0.78995]
[1749943925763,0.78996,2530.7,2530.5,24.012]
[1749943925764,0.78996,2530.6,2530.5,24.80197]
[1749943925968,0.78996,2530.6,2530.5,24.012]
[1749943926376,0.78996,2530.6,2530.5,24.80199]
[1749943927072,0.78996,2530.6,2530.5,24.012]
[1749943929675,1.97493,2530.6,2530.3,0.00592897]
[1749943929879,0.79003,2530.4,2530.3,0.00592897]
[1749943930273,0.79003,2530.4,2530.3,0.79598897]
[1749943931673,0.79003,2530.4,2530.3,0.00592897]
[1749943932175,2.14183,2530.4,2530.3,0.00592897]
[1749943934174,2.12691,2530.5,2530.4,0.79003]
[1749943934377,0.79003,2530.4,2530.3,0.79596897]
[1749943935180,1.3369,2530.5,2530.4,0.79003]
[1749943935381,0.79583897,2530.8,2530.7,0.78993]
[1749943935679,0.79583897,2530.8,2530.7,3.99773]
[1749943938778,0.00592897,2530.8,2530.7,3.99773]
[1749943939171,0.79582897,2530.8,2530.7,3.99773]
[1749943939574,0.00592897,2530.8,2530.7,3.99773]
[1749943940471,0.00592897,2530.8,2530.7,4.06582268]
[1749943943384,0.79582897,2530.8,2530.7,4.06582268]
[1749943943680,0.00592897,2530.8,2530.7,4.06582268]
[1749943945175,0.79582897,2530.8,2530.7,4.06582268]
[1749943946586,0.79582897,2530.8,2530.7,27.26189268]
[1749943947982,0.79582897,2530.8,2530.7,24.05409268]
[1749943948186,1.46282897,2530.8,2530.7,24.05409268]
[1749943948586,1.46282897,2530.8,2530.7,24.84402268]
[1749943949789,1.46282897,2530.8,2530.7,24.04809268]
[1749943950391,1.46282897,2530.8,2530.7,24.83802268]
[1749943951186,1.46282897,2530.8,2530.7,24.04809268]
[1749943951493,1.46282897,2530.8,2530.7,24.83802268]
[1749943952495,2.54468607,2530.8,2530.7,0.06809268]
[1749943952682,0.79003,2530.4,2530.3,0.00592897]
[1749943953190,1.87197256,2530.4,2530.3,0.00592897]
[1749943953388,2.53217256,2530.4,2530.3,0.00592897]
[1749943954282,3.89477256,2530.4,2530.3,0.00592897]
[1749943954687,0.79028,2529.6,2529.5,6.8228]
[1749943954989,3.99793,2530.1,2530.0,0.79015]
[1749943955195,1.08179179,2530.1,2529.9,3.2078]
[1749943955394,7.20572,2530.4,2529.9,3.2078]
[1749943955693,1.08129655,2530.3,2529.9,3.21372897]
[1749943955896,0.79015,2530.0,2529.9,4.00389897]
[1749943956094,0.79015,2530.0,2529.9,3.21372897]
[1749943958799,0.79015,2530.0,2529.9,4.00390897]
[1749943960495,0.79015,2530.1,2530.0,0.79013]
[1749943960801,4.65804,2530.4,2530.3,0.79006]
[1749943961092,3.868,2530.4,2530.1,25.2675]
[1749943961300,0.79009,2530.3,2530.2,0.79007]
[1749943962601,4.65804,2530.4,2530.3,0.79006]
[1749943962801,1.45024,2530.4,2530.3,3.99786]
[1749943963002,1.45024,2530.4,2530.3,3.2078]
[1749943963303,0.79006,2530.3,2530.2,2.08377]
[1749943964207,0.79009,2530.2,2530.1,1.2775]
[1749943964392,0.79015,2530.0,2529.9,10.15788897]
[1749943964598,0.79015,2530.0,2529.9,9.36772897]
[1749943967399,0.79015,2530.0,2529.9,3.21372897]
[1749943967596,0.79015,2530.0,2529.9,24.01392897]
[1749943968807,0.79015,2530.0,2529.9,0.00592897]
[1749943969908,0.79015,2530.0,2529.9,0.07402165]
[1749943971102,0.79015,2530.0,2529.9,0.86420165]
[1749943971506,0.79015,2530.0,2529.9,0.07402165]
[1749943979306,0.79015,2530.0,2529.9,0.86420165]
[1749943981411,0.79015,2530.0,2529.9,0.07402165]
[1749943981704,0.79015,2530.0,2529.9,0.86420165]
[1749943984107,0.79015,2530.0,2529.9,0.07402165]
[1749943984312,0.79015,2530.0,2529.9,0.86420165]
[1749943985716,0.79015,2530.0,2529.9,0.07402165]
[1749943986016,1.87432561,2530.0,2529.9,0.07402165]
[1749943986212,0.79015,2530.0,2529.9,0.07402165]
[1749943987008,1.874352,2530.0,2529.9,0.07402165]
[1749943990517,0.79015,2530.0,2529.9,0.07402165]
[1749943991920,1.87436398,2530.0,2529.9,0.07402165]
[1749943993121,0.79015,2530.0,2529.9,0.07402165]
[1749943993323,0.79015,2530.0,2529.9,0.86420165]
[1749943993819,1.87506158,2530.0,2529.9,0.86420165]
[1749943994021,2.50416158,2530.0,2529.9,0.86420165]
[1749943994522,2.50416158,2530.0,2529.9,0.07402165]
[1749943995523,2.50416158,2530.0,2529.9,0.86420165]
[1749943997917,2.50416158,2530.0,2529.9,0.07402165]
[1749944000319,2.50416158,2530.0,2529.9,0.86420165]
[1749944001925,2.50416158,2530.0,2529.9,1.52790165]
[1749944002528,1.08491158,2530.0,2529.9,1.52790165]
[1749944002825,0.79013,2530.1,2530.0,0.79015]
[1749944003028,0.79013,2530.1,2530.0,5.26375]
[1749944003227,1.8750426,2530.1,2530.0,5.26375]
[1749944003726,1.8750426,2530.1,2530.0,4.4736]
[1749944004321,1.8750426,2530.1,2530.0,3.2078]
[1749944004629,1.8750426,2530.1,2530.0,23.967]
[1749944004831,0.79015,2530.0,2529.9,24.04102165]
[1749944005022,2.5424626,2530.0,2529.9,0.07402165]
[1749944005221,2.5424626,2530.0,2529.9,24.04102165]
[1749944011132,2.5424626,2530.0,2529.9,24.83120165]
[1749944011730,2.5424626,2530.0,2529.9,0.07402165]
[1749944012935,3.8021626,2530.0,2529.9,0.07402165]
[1749944015437,2.5424626,2530.0,2529.9,0.07402165]
[1749944018034,1.0849126,2530.0,2529.9,0.86420165]
[1749944018244,0.79014,2530.1,2530.0,0.79015]
[1749944018440,1.08495422,2530.2,2530.0,1.97539]
[1749944018648,3.2078,2530.4,2530.3,0.79006]
[1749944018947,5.08240611,2530.4,2530.3,0.79006]
[1749944019149,4.29237611,2530.4,2530.3,0.79006]
[1749944019448,3.99783,2530.4,2530.3,2.78006]
[1749944020134,0.79003,2530.4,2530.3,5.1978]
[1749944020743,0.79002,2530.5,2530.4,0.79001]
[1749944021048,0.79002,2530.5,2530.4,2.12681]
[1749944021249,0.79002,2530.5,2530.4,1.9711]
[1749944022350,0.79002,2530.5,2530.4,2.76113]
[1749944023356,0.79002,2530.5,2530.4,1.9711]
[1749944023855,0.79002,2530.5,2530.4,2.76113]
[1749944024156,0.78998,2530.6,2530.5,0.78998]
[1749944024445,0.78998,2530.6,2530.5,26.10228]
[1749944025452,0.78998,2530.6,2530.5,25.3123]
[1749944027353,0.78998,2530.6,2530.5,26.1023]
[1749944030762,0.78998,2530.6,2530.5,26.17039268]
[1749944032160,0.78998,2530.6,2530.5,29.37819268]
[1749944033263,1.98070897,2530.8,2530.5,29.37819268]
[1749944033264,0.00592897,2530.8,2530.5,30.56316268]
[1749944033457,0.00592897,2530.8,2530.7,0.78993]
[1749944033656,0.00592897,2530.8,2530.7,2.09243]
[1749944033959,0.78976,2531.3,2531.2,0.78978]
[1749944034159,0.6904,2531.5,2531.2,27.1688]
[1749944034361,3.2078,2531.8,2531.3,3.92814]
[1749944034659,3.99741,2531.8,2531.4,6.142]
[1749944034862,3.99741,2531.8,2531.5,25.913]
[1749944035163,0.78962,2531.7,2531.5,25.913]
[1749944035662,0.78965,2531.6,2531.5,25.913]
[1749944035856,3.2078,2531.8,2531.3,0.65722897]
[1749944035857,0.78971,2531.4,2531.3,0.65722897]
[1749944036058,0.78971,2531.4,2531.3,23.96892897]
[1749944042660,0.78969,2531.5,2531.4,0.78971]
[1749944042964,0.78969,2531.5,2531.4,1.3305]
[1749944043166,0.78969,2531.5,2531.4,1.9658]
[1749944043767,0.6903,2531.8,2531.4,2.75548]
[1749944043956,0.78965,2531.6,2531.5,1.3305]
[1749944044162,0.78965,2531.6,2531.5,4.5383]
[1749944044667,0.78968,2531.5,2531.4,0.6353]
[1749944044864,0.78968,2531.5,2531.4,30.7603]
[1749944045066,0.78968,2531.5,2531.4,32.88051]
[1749944046065,2.6643,2531.8,2531.3,0.07402165]
[1749944046266,0.78971,2531.4,2531.3,0.07402165]
[1749944046467,0.78971,2531.4,2531.3,30.19202165]
[1749944046868,0.78971,2531.4,2531.3,30.98177165]
[1749944047069,0.78971,2531.4,2531.3,30.19202165]
[1749944047372,0.7897,2531.5,2531.4,0.78969]
[1749944047570,0.78971,2531.4,2531.3,30.98174165]
[1749944047773,0.78971,2531.4,2531.3,32.28944165]
[1749944049171,0.78971,2531.5,2531.4,0.78971]
[1749944049372,0.6499,2531.7,2531.4,0.78971]
[1749944049669,0.78965,2531.6,2531.5,23.969]
[1749944051070,0.6903,2531.8,2531.7,0.78962]
[1749944051273,0.00592897,2531.9,2531.8,0.78959]
[1749944052289,0.00592897,2531.9,2531.7,30.108]
[1749944052290,0.78959,2531.8,2531.7,30.89761]
[1749944052482,0.78959,2531.8,2531.7,30.108]
[1749944053371,0.78959,2531.8,2531.7,30.89762]
[1749944053870,0.78959,2531.8,2531.7,30.108]
[1749944054269,1.97399,2531.8,2531.5,3.2078]
[1749944054467,0.78965,2531.6,2531.5,3.2078]
[1749944054667,0.78965,2531.6,2531.5,33.3098]
[1749944055475,0.78965,2531.6,2531.5,34.09948]
[1749944057680,0.78965,2531.6,2531.5,30.102]
[1749944057976,0.78965,2531.6,2531.5,30.89168]
[1749944059785,0.78965,2531.6,2531.5,30.102]
[1749944060280,0.78965,2531.6,2531.5,30.17009268]
[1749944060983,0.78965,2531.6,2531.5,30.95977268]
[1749944061670,0.78965,2531.6,2531.5,30.16409268]
[1749944063383,0.78965,2531.6,2531.5,30.95377268]
[1749944063878,0.78965,2531.6,2531.5,30.16409268]
[1749944064072,3.86206802,2531.6,2531.5,0.06809268]
[1749944064272,3.86206802,2531.6,2531.5,24.01909268]
[1749944067877,3.86206802,2531.6,2531.5,0.06809268]
[1749944068077,0.78971,2531.4,2531.3,0.00592897]
[1749944068380,3.99751,2531.4,2531.3,23.95692897]
[1749944068684,5.07912802,2531.4,2531.3,23.95692897]
[1749944070583,1.87132802,2531.4,2531.3,23.95692897]
[1749944074387,1.87132802,2531.4,2531.3,24.02502165]
[1749944077887,0.6909,2531.6,2531.3,24.02502165]
[1749944078086,0.78971,2531.5,2531.4,0.78969]
[1749944078290,0.78971,2531.5,2531.4,0.6277]
[1749944078489,0.78971,2531.4,2531.3,26.07094165]
[1749944078886,0.78969,2531.5,2531.4,0.78967]
[1749944080188,0.78971,2531.4,2531.3,26.75285165]
[1749944080383,1.47641,2531.4,2531.3,24.02502165]
[1749944080688,1.47641,2531.4,2531.3,24.02702165]
[1749944080890,1.47641,2531.4,2531.3,24.81677165]
[1749944081690,1.47641,2531.4,2531.3,24.02702165]
[1749944082592,1.47641,2531.4,2531.3,23.95892897]
[1749944083692,1.47641,2531.4,2531.3,24.74867897]
[1749944087389,0.78971,2531.4,2531.3,26.12587897]
[1749944087590,0.78971,2531.4,2531.3,26.19397165]
[1749944089997,0.7897,2531.5,2531.4,0.78968]
[1749944090488,0.7897,2531.5,2531.4,2.13268]
[1749944091798,0.78971,2531.4,2531.3,24.02702165]
[1749944091997,0.78971,2531.4,2531.3,24.81677165]
[1749944092397,0.78971,2531.4,2531.3,26.16247165]
[1749944092898,3.99745,2531.7,2531.6,0.78965]
[1749944093098,5.07928312,2531.7,2531.6,24.74065]
[1749944093302,3.99745,2531.7,2531.6,24.74065]
[1749944094004,3.99745,2531.7,2531.6,26.08635]
[1749944094501,0.78961,2531.8,2531.7,0.78962]
[1749944094698,1.87118742,2531.8,2531.7,0.78962]
[1749944094904,0.78962,2531.7,2531.6,26.08633]
[1749944099197,0.78961,2531.8,2531.7,0.78959]
[1749944099900,0.00592897,2531.9,2531.8,0.78959]
[1749944100496,0.00592897,2531.9,2531.8,1.44209]
[1749944100703,0.78962,2531.7,2531.6,30.87963]
[1749944101397,0.6712,2531.8,2531.6,30.09]
[1749944101605,0.00592897,2531.9,2531.8,0.78959]
[1749944101806,0.79548897,2531.9,2531.8,0.78959]
[1749944102111,0.79548897,2531.9,2531.8,24.73859]
[1749944105926,0.79548897,2531.9,2531.8,23.949]
[1749944106213,0.79548897,2531.9,2531.8,24.73859]
[1749944106419,0.79548897,2531.9,2531.8,23.949]
[1749944107516,0.79548897,2531.9,2531.8,24.73859]
[1749944108320,0.78959,2531.8,2531.7,3.9974]
[1749944108518,1.45779,2531.8,2531.7,27.1558]
[1749944112219,1.45779,2531.8,2531.7,3.2078]
[1749944112421,0.78962,2531.7,2531.6,6.20709268]
[1749944112623,0.78962,2531.7,2531.6,30.15409268]
[1749944113725,1.87054707,2531.7,2531.6,0.06809268]
[1749944113928,1.87054707,2531.7,2531.6,24.01509268]
[1749944116829,1.87054707,2531.7,2531.6,0.06809268]
[1749944117127,1.87054707,2531.7,2531.5,23.948]
[1749944117128,0.78965,2531.6,2531.5,23.948]
[1749944118529,1.87095243,2531.6,2531.5,23.948]
[1749944121425,1.87095243,2531.6,2531.5,24.73768]
[1749944121630,0.78965,2531.6,2531.5,24.73768]
[1749944122531,0.78965,2531.6,2531.5,26.08728]
[1749944122933,1.87127069,2531.6,2531.5,26.08728]
[1749944123632,0.78965,2531.6,2531.5,26.08728]
[1749944123830,0.78965,2531.6,2531.5,25.2976]
[1749944124136,1.87123486,2531.6,2531.5,23.948]
[1749944126135,1.87123486,2531.6,2531.4,0.6247]
[1749944126136,0.78968,2531.5,2531.4,0.6247]
[1749944126436,0.78971,2531.4,2531.3,6.14392897]
[1749944126733,0.78971,2531.4,2531.3,30.09192897]
[1749944127531,0.78971,2531.4,2531.3,32.24094897]
[1749944128934,0.78971,2531.4,2531.3,31.45122897]
[1749944129640,0.78971,2531.4,2531.3,30.09192897]
[1749944130535,0.78971,2531.4,2531.3,0.00592897]
[1749944130738,7.00921208,2531.4,2531.3,0.00592897]
[1749944131141,7.00912978,2531.4,2531.3,0.00592897]
[1749944132135,5.75122978,2531.4,2531.3,0.00592897]
[1749944134444,5.75122978,2531.4,2531.3,0.07402165]
[1749944136635,2.54342978,2531.4,2531.3,0.07402165]
[1749944138552,1.97448,2531.2,2530.9,23.95]
[1749944138737,0.78987,2530.9,2530.8,31.53088]
[1749944139543,0.78987,2530.9,2530.8,32.79118]
[1749944143147,0.78986,2531.0,2530.9,0.78985]
[1749944143349,0.78986,2531.0,2530.9,2.15035]
[1749944143648,1.44462,2531.1,2531.0,0.78984]
[1749944143843,1.44462,2531.1,2531.0,2.15034]
[1749944144938,0.78982,2531.1,2531.0,2.15034]
[1749944149355,0.78982,2531.1,2531.0,26.10034]
[1749944149653,0.78982,2531.1,2531.0,26.16843268]
[1749944150656,0.78982,2531.1,2531.0,0.85793268]
[1749944150853,0.78982,2531.1,2531.0,24.01809268]
[1749944151150,0.78982,2531.1,2531.0,24.80793268]
[1749944153958,0.78982,2531.1,2531.0,24.01809268]
[1749944154961,0.78982,2531.1,2531.0,24.80793268]
[1749944155962,0.78982,2531.1,2531.0,24.01809268]
[1749944156263,0.78982,2531.1,2531.0,24.80793268]
[1749944159362,0.78982,2531.1,2531.0,24.01809268]
[1749944159563,0.78982,2531.1,2531.0,24.80793268]
[1749944160064,0.78982,2531.1,2531.0,26.17983268]
[1749944160355,0.78982,2531.1,2531.0,1.43999268]
[1749944160557,1.87288288,2531.1,2531.0,0.06809268]
[1749944160762,1.87288288,2531.1,2531.0,24.01709268]
[1749944162868,1.87288288,2531.1,2531.0,0.06809268]
[1749944163068,1.87288288,2531.1,2531.0,24.01709268]
[1749944163869,1.87288288,2531.1,2531.0,0.06809268]
[1749944164059,1.87288288,2531.1,2531.0,24.01709268]
[1749944164463,1.87288288,2531.1,2531.0,0.06809268]
[1749944169668,1.87288288,2531.1,2531.0,0.85793268]
[1749944169874,1.87288288,2531.1,2531.0,0.06809268]
[1749944173075,0.7898,2531.2,2531.1,0.78981]
[1749944173275,1.87315432,2531.2,2531.1,5.34971]
[1749944173976,1.87313431,2531.2,2531.1,5.34971]
[1749944175276,0.7898,2531.2,2531.1,5.34971]
[1749944175475,0.7898,2531.2,2531.1,3.2078]